Cogmind - Beta 16.1 @@@ ROGUE MODE // 2026.02.10 @ 14:21:44 Player: Drago Result: Destroyed by 9A-OKW(R) with Subdweller Machine Gun Performance ------------- Evolutions (0) 0 Regions Visited (2) 400 Robots Destroyed (18) 90 Value Destroyed (546) 546 Prototype IDs (13) 260 Alien Tech Used (0) 0 Bonus (0) 0 TOTAL SCORE: 1296 Bonus ------- None Cogmind --------- Core Integrity 0/250 Matter 261/300 Energy 200/200 System Corruption 0% Temperature Cool (0) Movement Rolling (119) Ox2 Location -10/Subcaves Parts ------- > --- POWER (1) -------- Subdweller Power Source > --- PROPULSION (2) --- Wheel Subdweller Monowheel > --- UTILITY (2) ------ High-capacity Storage Unit Subdweller Optics > --- WEAPON (2) ------- Subdweller Beam Cannon Slug Cannon > --- INVENTORY (20) --- Subdweller Power Source Subdweller Power Source Subdweller Power Source Subdweller Monowheel Subdweller Monowheel Subdweller Monowheel Small Storage Unit Subdweller Optics Scrap Shield Tower Shield Hacking Suite Subdweller Laser Subdweller Laser Subdweller Beam Cannon Subdweller Shrapnel Launcher Peak State ------------ > --- POWER ------------ Subdweller Power Source > --- PROPULSION ------- Wheel Subdweller Monowheel > --- UTILITY ---------- High-capacity Storage Unit Subdweller Optics > --- WEAPON ----------- Subdweller Beam Cannon Slug Cannon > --- INVENTORY -------- Subdweller Power Source Subdweller Power Source Subdweller Power Source Subdweller Monowheel Subdweller Monowheel Subdweller Monowheel Small Storage Unit Subdweller Optics Subdweller Optics Scrap Shield Tower Shield Hacking Suite Subdweller Laser Subdweller Laser Subdweller Beam Cannon Subdweller Shrapnel Launcher [Rating: 19] Favorites ----------- Power Ion Engine Engine Ion Engine Propulsion Wheel Treads Light Treads Wheel Wheel Utility High-capacity Storage Unit Device Subdweller Optics Storage High-capacity Storage Unit Weapon Subdweller Beam Cannon Energy Gun Medium Laser Energy Cannon Subdweller Beam Cannon Ballistic Gun Light Assault Rifle Ballistic Cannon Slug Cannon Special Weapon Mining Laser Build | -11 -10 -10 ------- Run | Yrd Mat Sub Slots Evolved . | . . . Power . | . . . Propulsion . | . . . Utility . | . . . Weapon . | . . . Parts Attached 22 | 7 2 13 Power 3 | 1 . 2 Engine 3 | 1 . 2 Core . | . . . Reactor . | . . . Propulsion 5 | 2 . 3 Treads 1 | 1 . . Leg . | . . . Wheel 4 | 1 . 3 Hover . | . . . Flight . | . . . Utility 6 | 2 1 3 Device 4 | 1 . 3 Storage 2 | 1 1 . Processor . | . . . Hackware . | . . . Protection . | . . . Artifact . | . . . Weapon 8 | 2 1 5 Energy Gun 1 | 1 . . Energy Cannon 2 | . . 2 Ballistic Gun 2 | 1 . 1 Ballistic Cannon 2 | . . 2 Launcher . | . . . Special Weapon 1 | . 1 . Impact Weapon . | . . . Slashing Weapon . | . . . Piercing Weapon . | . . . Special Melee Weapon . | . . . Unidentified Prototypes . | . . . Parts Lost 8 | . . 8 Power 2 | . . 2 Propulsion 2 | . . 2 Utility 2 | . . 2 Weapon 2 | . . 2 Highest Loss Streak 3 | . . 3 To Critical Strikes . | . . . Average Backups 9 | 2 3 11 Power 1 | . 1 2 Propulsion 1 | . 1 1 Utility 3 | . . 4 Weapon 2 | . 1 3 Tool/Special . | . . . Unused Backups 16 | . . 16 Power 3 | . . 3 Propulsion 3 | . . 3 Utility 6 | . . 6 Weapon 4 | . . 4 Tool/Special . | . . . Average Slot Usage (%) 96 | . 99 95 Engine 13 | . 14 13 Treads 6 | . 13 4 Wheel 21 | . 14 23 Device 11 | . 14 10 Storage 14 | . 14 14 Energy Gun 4 | . 14 1 Energy Cannon 7 | . . 9 Ballistic Gun 7 | . 9 6 Ballistic Cannon 6 | . . 8 Special Weapon 2 | . 4 1 Peak Build Rating 19 | 7 7 19 Average Rating 11 | 5 6 12 On Entrance 4 | . 7 7 Avg Prop Armor Cover (%) 12 | 14 12 12 Naked Turns . | . . . Heaviest Build 62 | 14 49 62 Greatest Support 30 | 10 10 30 Greatest Overweight (x) 5 | 1 4 5 Average Overweight (x) 1 | . 1 1 Largest Inventory Capacity 20 | 8 20 20 Average Capacity 17 | 7 12 20 Most Carried 20 | 3 5 20 Average Carried 10 | 2 3 13 Final Capacity 20 | 8 20 20 Final Carried 17 | 3 5 17 Class Distribution -------------------- 100% | Mutant Dominant Class ---------------- Mutant | -10/Materials Mutant | -10/Subcaves Resources | -11 -10 -10 ----------- Run | Yrd Mat Sub Matter Collected 759 | 281 . 478 Remotely . | . . . Salvage Created 468 | 85 14 369 Parts 51 | 6 4 41 Haulers Intercepted . | . . . Recyclers Shooed . | . . . Parts Field Recycled . | . . . Retrieved Matter . | . . . Parts Self-Destructed 15 | . . 15 Prevented . | . . . Parts Restored . | . . . Kills | -11 -10 -10 ------- Run | Yrd Mat Sub Combat Hostiles Destroyed 14 | . 1 13 Guns 3 | . 1 2 Cannons 11 | . . 11 Classes Destroyed 5 | 2 2 1 Tunneler 2 | 2 . . Recycler 1 | 1 . . Operator 1 | . 1 . Swarmer 2 | . 1 1 Subdweller 12 | . . 12 Best Kill Streak 3 | 3 1 2 Combat Bots Only 2 | . 1 2 Max Kills in Single Turn 1 | 1 1 1 Gunslinging . | . . . Exploded . | . . . Melee . | . . . Uniques/NPCs Destroyed . | . . . Combat | -11 -10 -10 -------- Run | Yrd Mat Sub Hostile Shots Fired 58 | . 5 53 Missed 15 | . 3 12 Hits 43 | . 2 41 Projectile 43 | . 2 41 AOE 3 | . . 3 Critical Strikes 1 | . . 1 Damage Taken 1052 | . 15 1037 Core 262 | . . 262 Absorbed by Shields . | . . . Core Remaining (%) 100 | 100 . . Volleys Fired 115 | 11 10 94 Largest 2 | 2 2 2 Hottest 120 | 70 100 120 Shots Fired 169 | 22 12 135 Gun 50 | 22 4 24 Cannon 95 | . . 95 Launcher . | . . . Special 24 | . 8 16 Kinetic 80 | 11 2 67 Thermal 89 | 11 10 68 Explosive . | . . . Electromagnetic . | . . . Robot Hit Streak 14 | 6 4 14 Robot Miss Streak 3 | 1 2 3 Penetration Max . | . . . Secondary Targets . | . . . Shots Hit Robots 76 | 14 3 59 Core Hits 22 | 4 2 16 Critical Kills 2 | . . 2 Critical Parts Destroyed . | . . . Critical Strikes 7 | . . 7 Burn 1 | . . 1 Destroy 6 | . . 6 Melee Attacks . | . . . Impact . | . . . Slashing . | . . . Piercing . | . . . Sneak Attacks . | . . . Combat Hostiles . | . . . Follow-up Attacks . | . . . Damage Inflicted 1432 | 152 49 1231 Guns 426 | 152 25 249 Cannons 982 | . . 982 Explosions . | . . . Melee . | . . . Ramming . | . . . Kinetic 770 | 77 11 682 Thermal 662 | 75 38 549 Explosive . | . . . Electromagnetic . | . . . Impact . | . . . Slashing . | . . . Piercing . | . . . Highest Corruption . | . . . Average Corruption . | . . . Corruption Purged . | . . . Corruption Blocked . | . . . Overload Shots . | . . . Overflow Damage . | . . . Projectiles . | . . . Explosions . | . . . Melee . | . . . Knockbacks 2 | . . 2 Impact . | . . . Kinetic 2 | . . 2 Secondary . | . . . Self-Inflicted Damage . | . . . Shots . | . . . Rammed . | . . . Targets Rammed . | . . . Kicked . | . . . Crushed . | . . . Highest Temperature 254 | 60 80 254 Average Temperature 32 | 27 31 35 Received Heat Transfer 450 | . . 450 Siege Activations . | . . . Martial Activations . | . . . Shielding Activations . | . . . Robots Disrupted . | . . . Combat Hostiles . | . . . Robots Corrupted . | . . . Combat Hostiles . | . . . Parts Fried . | . . . Impact Corruptions . | . . . Robots Melted . | . . . Combat Hostiles . | . . . Parts Melted . | . . . Heat Transferred 1234 | 222 87 925 Parts Sabotaged . | . . . Parts Stolen . | . . . Parts Stripped . | . . . Power Chain Reactions . | . . . Alert | -11 -10 -10 ------- Run | Yrd Mat Sub Maximum Alert Level . | . . . Low Security (%) 100 | 100 100 . Level 1 . | . . . Level 2 . | . . . Level 3 . | . . . Level 4 . | . . . Level 5 . | . . . High Security . | . . . Max Security . | . . . Peak Influence 21 | 5 21 . Initial . | . . . Average 2 | 1 2 . Influence Increases 95 | 15 60 20 Destroy 0b10 Robot/C 40 | . 20 20 Destroy 0b10 Robot/NC 20 | 15 5 . Trap Triggered on 0b10 10 | . 10 . Successful Hack 4 | . 4 . Disable Machine 15 | . 15 . Destroy Structure 6 | . 6 . Influence Decreases 95 | 15 60 20 Time Decay 95 | 15 60 20 Squads Dispatched 1 | . 1 . Investigation 1 | . 1 . Extermination . | . . . Reinforcement . | . . . Assault . | . . . Garrison . | . . . Intercept . | . . . Searches Triggered . | . . . Construction Impeded . | . . . Haulers Reinforced . | . . . Active Scanning Responses . | . . . Cargo Convoy Interrupts . | . . . Stealth | -11 -10 -10 --------- Run | Yrd Mat Sub Distress Signals 1 | . 1 . Communications Jammed . | . . . Distress Signals . | . . . Times Spotted 16 | . 4 12 Peak Tracking Total 2 | . 2 2 Tactical Retreats . | . . . Traps | -11 -10 -10 ------- Run | Yrd Mat Sub Traps Triggered 3 | . 1 2 Indirectly . | . . . Trap Hack Attempts . | . . . Triggered . | . . . Disarmed . | . . . Reprogrammed 6 | . 6 . Reused 1 | . 1 . Traps Extracted . | . . . Installed . | . . . Triggered 1 | . 1 . Most Traps Carried 1 | . . 1 Machines | -11 -10 -10 ---------- Run | Yrd Mat Sub Machines Disabled 2 | . 1 1 Max in Single Turn 1 | . 1 1 Machines Repaired . | . . . Machines Dismantled . | . . . Machines Sabotaged . | . . . Overloaded Fab Kills . | . . . Hacking | -11 -10 -10 --------- Run | Yrd Mat Sub Machines Accessed 4 | . 3 1 Terminals 3 | . 3 . Fabricators . | . . . Repair Stations . | . . . Recycling Units . | . . . Scanalyzers . | . . . Garrison Access . | . . . Total Hacks 19 | . 10 9 Successful 13 | . 4 9 Failed 6 | . 6 . Catastrophic . | . . . Database Lockouts . | . . . Manual 6 | . 6 . Terminals 10 | . 10 . Fabricators . | . . . Repair Stations . | . . . Recycling Units . | . . . Scanalyzers . | . . . Garrison Access . | . . . Terminal Hacks 12 | . 3 9 Record 8 | . . 8 Robot Analysis 1 | . 1 . Locate Traps 1 | . 1 . Reprogram Traps 1 | . 1 . Proto ID Catalog 1 | . . 1 Fabricator Hacks . | . . . Repair Station Hacks . | . . . Recycling Unit Hacks . | . . . Scanalyzer . | . . . Garrison Access Hacks . | . . . Unauthorized Hacks 1 | . 1 . Terminals 1 | . 1 . Botnet 1 | . 1 . Fabricators . | . . . Repair Stations . | . . . Recycling Units . | . . . Scanalyzers . | . . . Garrison Access . | . . . Data Cores Recovered . | . . . Used . | . . . Hacking Detections 3 | . 3 . Full Trace Events . | . . . Feedback Events . | . . . Feedback Blocked . | . . . Robot Schematics Acquired . | . . . Robots Built . | . . . Authchips . | . . . Time . | . . . Total Robot Build Rating . | . . . Part Schematics Acquired . | . . . Parts Built . | . . . Authchips . | . . . Time . | . . . Total Part Build Rating . | . . . Part Studies Acquired . | . . . Parts Repaired . | . . . Time . | . . . Parts Recycled . | . . . Recycled Matter . | . . . Retrieved Matter . | . . . Retrieved Components . | . . . Parts Scanalyzed . | . . . Part Schematics Acquired . | . . . Parts Damaged . | . . . Bothacking | -11 -10 -10 ------------ Run | Yrd Mat Sub Used RIF Installer . | . . . Robots Hacked . | . . . Non-combat . | . . . Combat . | . . . Robot Hacks Applied . | . . . Relay Couplers Released . | . . . Fabnet Peak Effective % . | . . . Robots Rewired . | . . . Allies Hacked . | . . . Hacks Repelled . | . . . Allies | -11 -10 -10 -------- Run | Yrd Mat Sub Total Allies . | . . . Largest Group . | . . . Highest-Rated Group . | . . . Highest-Rated Ally . | . . . Total Orders . | . . . Ally Attacks . | . . . Total Damage . | . . . Kills . | . . . Allies Corrupted . | . . . Allies Melted . | . . . Intel | -11 -10 -10 ------- Run | Yrd Mat Sub Active Infowar (turns) 889 | 20 304 565 Optics 430 | . . 430 Seismic 459 | 20 304 135 Robot Analysis Total 1 | . 1 . Derelict Logs Recovered 3 | . . 3 Drone Launches . | . . . Drone Recoveries . | . . . Exploration | -11 -10 -10 ------------- Run | Yrd Mat Sub Turns Passed 1655 | 99 304 1252 Spaces Moved 1087 | 61 235 791 Core 5 | 5 . . Treads . | . . . Legs . | . . . Wheels 1082 | 56 235 791 Hover . | . . . Flight . | . . . Fastest Speed 50 | 50 95 107 Average Speed 112 | 89 108 115 Slowest Speed 155 | 95 140 155 Overloaded Moves . | . . . Propulsion Burnouts . | . . . Robots Hopped . | . . . Potential Cave-ins . | . . . Cave-ins Triggered . | . . . Exploration Rate (%) 34 | 5 43 54 Regions Visited 2 Branch Regions 1 Pre-discovered Areas 3 | . . 3 Known Exits Taken . | . . . Unknown Exits Taken 2 | 1 1 . Scrap Searched 10 | . . 10 Spaces Dug 9 | . 6 3 Terrain Destroyed 38 | . 6 32 Melee . | . . . Projectile 38 | . 6 32 AOE . | . . . Terrain Rammed . | . . . Walls Destroyed . | . . . Machines Disabled . | . . . Actions | -11 -10 -10 --------- Run | Yrd Mat Sub Total 1296 | 81 253 962 Wait 27 | . 1 26 Move 1085 | 60 234 791 Hop . | . . . Pick Up 26 | 3 1 22 Fast Attach 13 | 7 1 5 Attach 5 | . . 5 Detach . | . . . Swap 12 | . 4 8 Drop 11 | . . 11 Fire 115 | 11 10 94 Melee . | . . . Ram . | . . . Kick . | . . . Crush . | . . . Escape Stasis . | . . . Rewire 2 | . 2 . Trap . | . . . Miscellaneous . | . . . Route ------- -11/Scrapyard -10/Materials (discovered 2 exits: [*Mat] / *Sub) -10/Subcaves History --------- Turn | Location | Event 23 | -11/Scrapyard | Discovered new exit (range 16) 100 | -11/Scrapyard | Entered Materials 171 | -10/Materials | Discovered new exit (range 15) 314 | -10/Materials | Build established: Mutant 393 | -10/Materials | Discovered new exit (range 9) 404 | -10/Materials | Entered Subcaves 517 | -10/Subcaves | Learned location of Zion (-7) 517 | -10/Subcaves | Met a Zionite searching for "candidates" 624 | -10/Subcaves | A swath of the cavern ceiling suddenly collapsed 787 | -10/Subcaves | Ambushed by Subdweller buried in earth 915 | -10/Subcaves | Shifting Twisted Machinery released Flamer 915 | -10/Subcaves | Shifting Twisted Machinery released Slug Cannon 916 | -10/Subcaves | Shifting Twisted Machinery released Battle Cannon 985 | -10/Subcaves | Core integrity fell below 50% 1137 | -10/Subcaves | Ambushed by Subdweller buried in earth 1389 | -10/Subcaves | Learned Materials emergency access door positions 1419 | -10/Subcaves | Core integrity fell below 20% 1489 | -10/Subcaves | Visited 4L-MR0's lab 1500 | -10/Subcaves | Found Tower Shield 1628 | -10/Subcaves | Shifting Twisted Machinery released Sub. Laser 1629 | -10/Subcaves | Shifting Twisted Machinery released Sub. Shrapnel Launcher 1635 | -10/Subcaves | Lost 3 parts (1p1u1w) 1656 | -10/Subcaves | Destroyed by 9A-OKW(R) with Subdweller Machine Gun Last Messages --------------- 01500_ Acquired Tower Shield. 01503_ 4L-MR0 mumbles to no one in particular: "Damn Subs sneaking around stealing my stuff." 01504_ 4L-MR0 mumbles: "I'm surprised some of them are even willing to come in here given their fear of my usual visitors." 01583_ Slug Cannon destroyed. 01585_ Lgt. Ion Engine destroyed. 01588_ JV-SB5(R) destroyed. 01593_ Acquired 42 matter. 01594_ Acquired 8 matter. 01604_ Sub. Optics destroyed. 01609_ NW-RKW(R) destroyed. 01617_ Acquired 59 matter. 01619_ Acquired 1 matter. Sub. Laser falls loose from the Twisted Machinery. Sub. Shrapnel Launcher falls loose from the Twisted Machinery. 01643_ 9A-OKW(R): "ECOKILL!" Map ----- +----------------------------------------------------+ | # #?????????????????????????????????????????????? | | # ##????????????????????????????????????????????? | | # #????????????????????????????????????????????? | | # #????????????????????????????????????????????? | | # #????????????????????????????????????????????? | | ###??????????????????????????????????????????? | | #?????????#????????????????????????????????? | | ##???????? ????????????????????????????????? | | ##????????? ????????????????????????????????? | | ###????????? ????????????????????????????????? | | #???????##?? ?????"??????????????????????????? | | "#??????? #??? "??????????????????????????? | | ##??????"" "" #??# " ?????????????????????????? | | ##??????"" "" " ###"""??????????????????????????? | | "##?#####" """"" ####???????????????????????? | | ###""## ["## ??# ##??????????????????????? | | " ## "## "## ???# ##?????????????????????? | | # [## "#?# "## #????# ##????????????????????? | | #= !## "### "" #????# #????????????????????? | | ### ""#"""" ###### ##?????????##????????? | | & * ## ##????? " #????????? | | ## "= """ #??? ##???????? | | ?##" """ # #"" [ ## ## ????? | | ??#""""" ######" ##### O R ???? | | ??# ""%#????##" #???# ???? | | ??# ""% #???#"" #??# @ ## ???? | | ??## #??##" #??## ### ###??????????? | | ???### #?? ##???# ??? ##????????????? | | ?????## #???? ??? #?????????????? | | ??????# #???# ##??? #?????????????? | | ??????### ## # [??? ##????? #?????????????? | | ?????????##??## ?? #????????#?????????????? | | ?????????????? ?? #??????????????????????? | | ??????????????# ? # ##??????????????????????? | | ??????????????############???????????????????????? | | ?????????????????????????????????????????????????? | | ?????????????????????????????????????????????????? | | ?????????????????????????????????????????????????? | | ?????????????????????????????????????????????????? | | ?????????????????????????????????????????????????? | | ?????????????????????????????????????????????????? | | ?????????????????????????????????????????????????? | | ?????????????????????????????????????????????????? | | ?????????????????????????????????????????????????? | | ?????????????????????????????????????????????????? | | ?????????????????????????????????????????????????? | | ?????????????????????????????????????????????????? | | ?????????????????????????????????????????????????? | | ?????????????????????????????????????????????????? | | ?????????????????????????????????????????????????? | +----------------------------------------------------+ Best States ------------- Heat Dissipation 25 Energy Generation 15 Energy Capacity 250 Matter Stores 300 Matter Capacity 300 Sight Range 21 Terrain Scan Density 10 Evasion (%) 44 Item Schematics ----------------- None Robot Schematics ------------------ None Fabricated ------------ Nothing Repaired ---------- Nothing Studied --------- None Alien Tech Used ----------------- None Achievements -------------- Mistaken Identity Challenges ------------ None Game ------ Seed GravjetBiometalSink Manual? 0 Play Time 00:18:19 Cumulative 135.6 hours Start 2026.02.10 @ 14:01:47 End 2026.02.10 @ 14:21:44 Sessions 1 Manual Loads 0 Difficulty Rogue Special Mode None Game No. 115 Rogue 115 Adventurer 0 Explorer 0 Win Type - Total 1 Types 1/0/0/0/0/0/0/0/0/0 Lore% 62 Gallery% 58 Achievement% 37 Wizard Run 0 Options --------- Layout 1 ASCII 0 Keyboard 0 Movement Numpad Keybinds 0 Fullscreen 1 Font 18/SmallcapsGlow Map View 50x40 Zoom Use 0% Tactical HUD 1 Map Filters NONE Filters NONE Steam 1 RUN: 382ebe8a-cb74-425e-9f25-0268ab9a4aca